fUSD/lending_fUSD_20240802
["ID","MTS","AMOUNT","RATE_DAILY","PERIOD"]
[333923855,1722631855189,-150.0,0.00016607,2]
[333923856,1722631855200,-150.0,0.00016608,2]
[333923858,1722631855210,-150.0,0.00016611,2]
[333923860,1722631855221,-150.0,0.00016612,2]
[333923862,1722631855232,-1000.0,0.00016612,2]
[333923863,1722631855242,-150.0,0.00016615,2]
[333923865,1722631855253,-150.0,0.00016615,2]
[333923867,1722631855263,-150.0,0.00016618,2]
[333923868,1722631855273,-150.0,0.0001662,2]
[333923870,1722631855284,-150.0,0.00016622,2]
[333923872,1722631855294,-150.0,0.00016623,2]
[333923874,1722631855305,-150.0,0.00016624,2]
[333923876,1722631855316,-150.0,0.00016625,2]
[333923878,1722631855326,-150.0,0.00016626,2]
[333923880,1722631855337,-150.0,0.00016628,2]
[333923882,1722631855347,-762.776,0.00016629,2]
[333923884,1722631855357,-450.0,0.00016629,2]
[333923886,1722631855367,-150.0,0.00016629,2]
[333923888,1722631855378,-886.835,0.00016629,2]
[333923890,1722631855388,-446.0,0.00016629,2]
[333923892,1722631855398,-550.0,0.00016629,2]
[333923894,1722631855409,-150.0,0.00016629,2]
[333923896,1722631855424,-1994.0,0.00016629,2]
[333923899,1722631855435,-1370.0,0.00016629,2]
[333923901,1722631855447,-3287.0,0.00016629,2]
[333923903,1722631855457,-150.0,0.00016629,2]
[333923905,1722631855467,-1203.0,0.00016629,2]
[333923907,1722631855478,-1670.0,0.00016629,2]
[333923909,1722631855489,-21732.0,0.00016629,2]
[333923910,1722631855499,-5834.0,0.00016629,2]
[333923911,1722631855510,-150.468,0.00016629,2]
[333923912,1722631855521,-5126.0,0.00016629,2]
[333923913,1722631855531,-158.282,0.00016629,2]
[333923914,1722631855542,-1074.0,0.00016629,2]
[333923915,1722631855553,-150.0,0.0001663,2]
[333923916,1722631855563,-150.0,0.00016634,2]
[333923917,1722631855574,-150.0,0.00016638,2]
[333923918,1722631855584,-150.0,0.00016642,2]
[333923919,1722631855593,-150.0,0.00016644,2]
[333923920,1722631855603,-150.0,0.00016646,2]
[333923921,1722631855613,-150.0,0.00016647,2]
[333923922,1722631855623,-150.0,0.00016647,2]
[333923923,1722631855633,-150.0,0.00016651,2]
[333923924,1722631855643,-163.06583263,0.00016655,2]
[333923925,1722631855653,-150.0,0.00016666,2]
[333923927,1722631855668,-150.0,0.00016666,2]
[333923928,1722631855678,-150.0,0.00016669,2]
[333923930,1722631855692,-150.0,0.00016669,2]
[333923932,1722631855703,-150.0,0.00016683,2]
[333923934,1722631855713,-150.0,0.00016683,2]
[333923936,1722631855722,-150.0,0.00016686,2]
[333923938,1722631855732,-150.0,0.00016687,2]
[333923940,1722631855741,-150.0,0.00016688,2]
[333923942,1722631855753,-494.0,0.000167,2]
[333923944,1722631855763,-150.0,0.000167,2]
[333923946,1722631855773,-508.79891608,0.00016709,2]
[333923948,1722631855782,-500.0,0.00016712,2]
[333923950,1722631855792,-300.0,0.00016712,2]
[333923952,1722631855802,-500.0,0.00016712,2]
[333923954,1722631855811,-1253.02,0.00016712,2]
[333923956,1722631855821,-500.0,0.00016712,2]
[333923958,1722631855831,-500.0,0.00016712,2]
[333923960,1722631855841,-500.0,0.00016712,2]
[333923962,1722631855851,-2250.07,0.00016712,2]
[333923964,1722631855860,-1145.72,0.00016712,2]
[333923966,1722631855870,-500.0,0.00016712,2]
[333923968,1722631855879,-500.0,0.00016712,2]
[333923970,1722631855889,-643.67,0.00016712,2]
[333923972,1722631855899,-828.51,0.00016712,2]
[333923974,1722631855909,-659.65,0.00016712,2]
[333923976,1722631855921,-714.58,0.00016712,2]
[333923978,1722631855930,-1399.14,0.00016712,2]
[333923980,1722631855940,-151.0,0.00016712,2]
[333923982,1722631855950,-178.0646,0.00016712,2]
[333923984,1722631855961,-500.0,0.00016712,2]
[333923986,1722631855971,-500.0,0.00016712,2]
[333923988,1722631855982,-500.0,0.00016712,2]
[333923990,1722631855991,-500.0,0.00016712,2]
[333923992,1722631856001,-959.33,0.00016712,2]
[333923994,1722631856010,-500.0,0.00016712,2]
[333923996,1722631856020,-151.0,0.00016712,2]
[333923998,1722631856030,-166.995848,0.00016712,2]
[333924000,1722631856040,-1202.33,0.00016712,2]
[333924002,1722631856049,-500.0,0.00016712,2]
[333924004,1722631856061,-801.79,0.00016712,2]
[333924007,1722631856071,-850.22,0.00016712,2]
[333924009,1722631856082,-500.0,0.00016712,2]
[333924011,1722631856092,-500.0,0.00016712,2]
[333924013,1722631856102,-1940.96,0.00016712,2]
[333924015,1722631856112,-270.08179506,0.00016712,2]
[333924017,1722631856122,-1164.02,0.00016712,2]
[333924019,1722631856134,-500.0,0.00016712,2]
[333924021,1722631856144,-227.08,0.00016712,2]
[333924023,1722631856153,-500.0,0.00016712,2]
[333924038,1722631856282,-684.63,0.00016712,2]
[333924040,1722631856292,-1463.38,0.00016712,2]
[333924042,1722631856302,-678.52,0.00016712,2]
[333924044,1722631856312,-1236.27,0.00016712,2]
[333924046,1722631856322,-500.0,0.00016712,2]
[333924048,1722631856330,-912.78,0.00016712,2]
[333924050,1722631856340,-1399.18,0.00016712,2]
[333924052,1722631856350,-601.54,0.00016712,2]
[333924054,1722631856360,-717.09,0.00016712,2]
[333924056,1722631856370,-500.0,0.00016712,2]
[333924058,1722631856379,-500.0,0.00016712,2]
[333924060,1722631856390,-624.24,0.00016712,2]
[333924062,1722631856400,-772.84,0.00016712,2]
[333924064,1722631856409,-500.0,0.00016712,2]
[333924066,1722631856421,-500.0,0.00016712,2]
[333924068,1722631856430,-590.92,0.00016712,2]
[333924070,1722631856439,-500.0,0.00016712,2]
[333924072,1722631856448,-500.0,0.00016712,2]
[333924074,1722631856458,-500.0,0.00016712,2]
[333924076,1722631856467,-1290.26,0.00016712,2]
[333924078,1722631856477,-578.21,0.00016712,2]
[333924080,1722631856486,-500.0,0.00016712,2]
[333924082,1722631856495,-500.0,0.00016712,2]
[333924084,1722631856504,-1619.87,0.00016712,2]
[333924086,1722631856514,-570.92,0.00016712,2]
[333924088,1722631856524,-540.78,0.00016712,2]
[333924090,1722631856534,-696.91,0.00016712,2]
[333924092,1722631856544,-151.0,0.00016712,2]
[333924094,1722631856553,-151.0,0.00016712,2]
[333924096,1722631856562,-249.832894,0.00016712,2]
[333924098,1722631856571,-1078.33,0.00016712,2]
[333924100,1722631856582,-500.0,0.00016712,2]
[333924102,1722631856592,-623.34,0.00016712,2]
[333924104,1722631856603,-1419.39,0.00016712,2]
[333924106,1722631856614,-500.0,0.00016712,2]
[333924109,1722631856624,-1662.54,0.00016712,2]
[333924111,1722631856634,-1644.64,0.00016712,2]
[333924113,1722631856643,-780.53,0.00016712,2]
[333924115,1722631856654,-723.34,0.00016712,2]
[333924117,1722631856665,-553.18,0.00016712,2]
[333924119,1722631856678,-791.76,0.00016712,2]
[333924121,1722631856688,-500.0,0.00016712,2]
[333924122,1722631856696,-503.13,0.00016712,2]
[333924124,1722631856706,-801.56,0.00016712,2]
[333924126,1722631856716,-1198.81,0.00016712,2]
[333924128,1722631856725,-500.0,0.00016712,2]
[333924129,1722631856736,-500.0,0.00016712,2]
[333924131,1722631856748,-1604.9,0.00016712,2]
[333924132,1722631856758,-729.83,0.00016712,2]
[333924134,1722631856767,-1748.07,0.00016712,2]
[333924135,1722631856777,-500.0,0.00016712,2]
[333924136,1722631856787,-2059.13,0.00016712,2]
[333924137,1722631856796,-1346.22,0.00016712,2]
[333924138,1722631856805,-997.69,0.00016712,2]
[333924139,1722631856816,-500.0,0.00016712,2]
[333924140,1722631856825,-500.0,0.00016712,2]
[333924141,1722631856835,-1212.35,0.00016712,2]
[333924142,1722631856844,-843.11,0.00016712,2]
[333924143,1722631856853,-500.0,0.00016712,2]
[333924144,1722631856863,-500.0,0.00016712,2]
[333924145,1722631856872,-1363.88,0.00016712,2]
[333924146,1722631856881,-1866.38,0.00016712,2]
[333924147,1722631856891,-500.0,0.00016712,2]
[333924148,1722631856900,-500.0,0.00016712,2]
[333924149,1722631856910,-500.0,0.00016712,2]
[333924150,1722631856921,-1438.22,0.00016712,2]
[333924151,1722631856930,-643.47,0.00016712,2]
[333924152,1722631856939,-500.0,0.00016712,2]
[333924153,1722631856949,-500.0,0.00016712,2]
[333924154,1722631856958,-500.0,0.00016712,2]
[333924155,1722631856968,-1643.03,0.00016712,2]
[333924156,1722631856977,-543.03,0.00016712,2]
[333924157,1722631856988,-500.0,0.00016712,2]
[333924158,1722631856998,-500.0,0.00016712,2]
[333924159,1722631857007,-1346.74,0.00016712,2]
[333924160,1722631857016,-635.67,0.00016712,2]
[333924161,1722631857026,-500.0,0.00016712,2]
[333924162,1722631857035,-553.97,0.00016712,2]
[333924163,1722631857044,-500.0,0.00016712,2]
[333924164,1722631857054,-500.0,0.00016712,2]
[333924165,1722631857064,-500.0,0.00016712,2]
[333924166,1722631857073,-500.0,0.00016712,2]
[333924167,1722631857083,-500.0,0.00016712,2]
[333924168,1722631857092,-500.0,0.00016712,2]
[333924169,1722631857101,-500.0,0.00016712,2]
[333924170,1722631857111,-1307.89,0.00016712,2]
[333924171,1722631857120,-2273.53,0.00016712,2]
[333924172,1722631857129,-713.8,0.00016712,2]
[333924173,1722631857139,-500.0,0.00016712,2]
[333924174,1722631857148,-970.89,0.00016712,2]
[333924175,1722631857158,-972.89,0.00016712,2]
[333924176,1722631857169,-500.0,0.00016712,2]
[333924177,1722631857178,-931.08,0.00016712,2]
[333924178,1722631857188,-936.47,0.00016712,2]
[333924179,1722631857197,-500.0,0.00016712,2]
[333924181,1722631857206,-575.8,0.00016712,2]
[333924183,1722631857216,-1868.69,0.00016712,2]
[333924185,1722631857225,-500.0,0.00016712,2]
[333924187,1722631857235,-500.0,0.00016712,2]
[333924189,1722631857245,-500.0,0.00016712,2]
[333924191,1722631857254,-500.0,0.00016712,2]
[333924193,1722631857263,-500.0,0.00016712,2]
[333924195,1722631857273,-500.0,0.00016712,2]
[333924197,1722631857283,-521.51328903,0.00016712,2]
[333924199,1722631857292,-500.0,0.00016712,2]
[333924200,1722631857302,-500.0,0.00016712,2]
[333924202,1722631857312,-500.0,0.00016712,2]
[333924204,1722631857321,-952.94,0.00016712,2]
[333924206,1722631857330,-1018.81,0.00016712,2]
[333924208,1722631857340,-500.0,0.00016712,2]
[333924210,1722631857350,-2273.19,0.00016712,2]
[333924212,1722631857359,-942.1,0.00016712,2]
[333924214,1722631857369,-500.0,0.00016712,2]
[333924216,1722631857378,-500.0,0.00016712,2]
[333924218,1722631857387,-500.0,0.00016712,2]
[333924220,1722631857397,-548.9,0.00016712,2]
[333924222,1722631857406,-1144.56,0.00016712,2]
[333924224,1722631857418,-500.0,0.00016712,2]
[333924226,1722631857427,-912.95,0.00016712,2]
[333924228,1722631857437,-785.19,0.00016712,2]
[333924230,1722631857447,-857.91,0.00016712,2]
[333924232,1722631857456,-3574.48,0.00016712,2]
[333924234,1722631857466,-911.5,0.00016712,2]
[333924236,1722631857475,-500.0,0.00016712,2]
[333924238,1722631857485,-500.0,0.00016712,2]
[333924240,1722631857495,-642.03,0.00016712,2]
[333924242,1722631857504,-967.56,0.00016712,2]
[333924244,1722631857514,-1908.36,0.00016712,2]
[333924246,1722631857523,-2571.87,0.00016712,2]
[333924248,1722631857533,-500.0,0.00016712,2]
[333924250,1722631857543,-566.34,0.00016712,2]
[333924252,1722631857552,-500.0,0.00016712,2]
[333924254,1722631857562,-581.52,0.00016712,2]
[333924256,1722631857571,-500.0,0.00016712,2]
[333924258,1722631857584,-500.0,0.00016712,2]
[333924260,1722631857594,-500.0,0.00016712,2]
[333924262,1722631857603,-500.0,0.00016712,2]
[333924264,1722631857613,-500.0,0.00016712,2]
[333924265,1722631857622,-500.0,0.00016712,2]
[333924266,1722631857631,-500.0,0.00016712,2]
[333924267,1722631857641,-4070.42,0.00016712,2]
[333924268,1722631857650,-500.0,0.00016712,2]
[333924269,1722631857660,-1569.57,0.00016712,2]
[333924270,1722631857674,-500.0,0.00016712,2]
[333924271,1722631857684,-604.92,0.00016712,2]
[333924272,1722631857693,-500.0,0.00016712,2]
[333924273,1722631857703,-1902.31,0.00016712,2]
[333924275,1722631857713,-500.0,0.00016712,2]
[333924277,1722631857723,-3171.16,0.00016712,2]
[333924279,1722631857733,-1925.65,0.00016712,2]
[333924281,1722631857745,-500.0,0.00016712,2]
[333924283,1722631857754,-775.73,0.00016712,2]
[333924285,1722631857764,-509.13,0.00016712,2]
[333924287,1722631857774,-632.85,0.00016712,2]
[333924289,1722631857783,-500.0,0.00016712,2]
[333924291,1722631857793,-500.0,0.00016712,2]
[333924293,1722631857803,-500.0,0.00016712,2]
[333924295,1722631857812,-500.0,0.00016712,2]
[333924297,1722631857822,-2796.08,0.00016712,2]
[333924299,1722631857831,-500.0,0.00016712,2]
[333924302,1722631857841,-568.17,0.00016712,2]
[333924304,1722631857851,-500.0,0.00016712,2]
[333924305,1722631857860,-500.0,0.00016712,2]
[333924308,1722631857870,-1396.97,0.00016712,2]
[333924309,1722631857879,-500.0,0.00016712,2]
[333924311,1722631857888,-492.88017603,0.00016712,2]
[333924313,1722631857898,-500.0,0.00016712,2]
[333924315,1722631857907,-1423.73,0.00016712,2]
[333924318,1722631857918,-589.64,0.00016712,2]
[333924319,1722631857928,-3622.56,0.00016712,2]
[333924321,1722631857937,-502.72,0.00016712,2]
[333924323,1722631857947,-1390.52,0.00016712,2]
[333924325,1722631857958,-1472.08,0.00016712,2]
[333924327,1722631857967,-792.33,0.00016712,2]
[333924329,1722631857977,-500.0,0.00016712,2]
[333924331,1722631857987,-500.0,0.00016712,2]
[333924333,1722631857996,-545.12,0.00016712,2]
[333924335,1722631858005,-864.1,0.00016712,2]
[333924337,1722631858015,-926.8,0.00016712,2]
[333924339,1722631858025,-500.0,0.00016712,2]
[333924341,1722631858035,-1780.07,0.00016712,2]
[333924343,1722631858044,-500.0,0.00016712,2]
[333924345,1722631858054,-500.0,0.00016712,2]
[333924347,1722631858063,-500.0,0.00016712,2]
[333924349,1722631858073,-2744.34,0.00016712,2]
[333924351,1722631858082,-500.0,0.00016712,2]
[333924353,1722631858092,-937.69,0.00016712,2]
[333924355,1722631858104,-500.0,0.00016712,2]
[333924357,1722631858113,-500.0,0.00016712,2]
[333924359,1722631858122,-1280.51,0.00016712,2]
[333924361,1722631858131,-818.37,0.00016712,2]
[333924363,1722631858141,-514.38,0.00016712,2]
[333924365,1722631858151,-951.01,0.00016712,2]
[333924367,1722631858160,-838.61,0.00016712,2]
[333924369,1722631858172,-626.64,0.00016712,2]
[333924371,1722631858182,-1995.24,0.00016712,2]
[333924373,1722631858191,-654.45,0.00016712,2]
[333924375,1722631858201,-847.4,0.00016712,2]
[333924377,1722631858210,-600.89,0.00016712,2]
[333924379,1722631858219,-1909.77,0.00016712,2]
[333924381,1722631858228,-2227.89,0.00016712,2]
[333924383,1722631858238,-1231.33,0.00016712,2]
[333924385,1722631858248,-739.69,0.00016712,2]
[333924387,1722631858257,-500.0,0.00016712,2]
[333924389,1722631858266,-710.35,0.00016712,2]
[333924391,1722631858276,-500.0,0.00016712,2]
[333924393,1722631858285,-901.9,0.00016712,2]
[333924394,1722631858294,-1140.9,0.00016712,2]
[333924396,1722631858304,-1107.75,0.00016712,2]
[333924398,1722631858314,-838.92,0.00016712,2]
[333924400,1722631858324,-779.08,0.00016712,2]
[333924402,1722631858333,-500.0,0.00016712,2]
[333924404,1722631858343,-500.0,0.00016712,2]
[333924406,1722631858352,-739.76,0.00016712,2]
[333924408,1722631858362,-837.24,0.00016712,2]
[333924410,1722631858372,-500.0,0.00016712,2]
[333924412,1722631858381,-2254.89,0.00016712,2]
[333924414,1722631858391,-500.0,0.00016712,2]
[333924416,1722631858400,-500.0,0.00016712,2]
[333924418,1722631858410,-1462.52,0.00016712,2]
[333924420,1722631858422,-500.0,0.00016712,2]
[333924422,1722631858432,-500.0,0.00016712,2]
[333924424,1722631858442,-1622.17,0.00016712,2]
[333924426,1722631858452,-724.79,0.00016712,2]
[333924428,1722631858461,-500.0,0.00016712,2]
[333924430,1722631858471,-500.0,0.00016712,2]
[333924432,1722631858480,-500.0,0.00016712,2]
[333924434,1722631858490,-664.84,0.00016712,2]
[333924436,1722631858500,-942.67,0.00016712,2]
[333924438,1722631858510,-500.0,0.00016712,2]
[333924440,1722631858520,-500.0,0.00016712,2]
[333924442,1722631858529,-1774.4,0.00016712,2]
[333924444,1722631858538,-536.34,0.00016712,2]
[333924446,1722631858548,-518.59,0.00016712,2]
[333924448,1722631858559,-1306.91,0.00016712,2]
[333924450,1722631858568,-816.02,0.00016712,2]
[333924452,1722631858579,-500.0,0.00016712,2]
[333924454,1722631858589,-500.0,0.00016712,2]
[333924456,1722631858598,-1436.48,0.00016712,2]
[333924458,1722631858610,-2359.52,0.00016712,2]
[333924460,1722631858619,-500.0,0.00016712,2]
[333924462,1722631858629,-500.0,0.00016712,2]
[333924464,1722631858638,-1396.66,0.00016712,2]
[333924466,1722631858648,-594.62,0.00016712,2]
[333924468,1722631858658,-500.0,0.00016712,2]
[333924470,1722631858674,-500.0,0.00016712,2]
[333924472,1722631858684,-875.09,0.00016712,2]
[333924474,1722631858693,-792.67,0.00016712,2]
[333924476,1722631858704,-1592.97,0.00016712,2]
[333924478,1722631858714,-500.0,0.00016712,2]
[333924480,1722631858723,-1082.51,0.00016712,2]
[333924482,1722631858733,-500.0,0.00016712,2]
[333924484,1722631858742,-534.84,0.00016712,2]
[333924486,1722631858753,-500.0,0.00016712,2]
[333924488,1722631858763,-2021.82,0.00016712,2]
[333924490,1722631858772,-500.0,0.00016712,2]
[333924492,1722631858781,-439.29162322,0.00016712,2]
[333924494,1722631858791,-500.0,0.00016712,2]
[333924496,1722631858800,-638.26,0.00016712,2]
[333924498,1722631858809,-500.0,0.00016712,2]
[333924500,1722631858818,-219.88368,0.00016712,2]
[333924502,1722631858828,-500.0,0.00016712,2]
[333924504,1722631858837,-500.0,0.00016712,2]
[333924506,1722631858846,-612.01,0.00016712,2]
[333924508,1722631858856,-852.21,0.00016712,2]
[333924510,1722631858866,-500.0,0.00016712,2]
[333924512,1722631858876,-608.33,0.00016712,2]
[333924514,1722631858886,-1160.36,0.00016712,2]
[333924516,1722631858897,-1016.85,0.00016712,2]
[333924518,1722631858909,-1451.3,0.00016712,2]
[333924520,1722631858921,-500.0,0.00016712,2]
[333924522,1722631858930,-1371.91,0.00016712,2]
[333924524,1722631858939,-500.0,0.00016712,2]
[333924526,1722631858949,-500.0,0.00016712,2]
[333924528,1722631858958,-1440.12,0.00016712,2]
[333924530,1722631858968,-1817.93,0.00016712,2]
[333924532,1722631858977,-675.68,0.00016712,2]
[333924534,1722631858986,-500.0,0.00016712,2]
[333924536,1722631858996,-1011.0,0.00016712,2]
[333924538,1722631859005,-1471.83,0.00016712,2]
[333924540,1722631859014,-1777.97,0.00016712,2]
[333924542,1722631859024,-151.0,0.00016712,2]
[333924544,1722631859033,-151.0,0.00016712,2]
[333924546,1722631859042,-1744.77,0.00016712,2]
[333924548,1722631859051,-151.0,0.00016712,2]
[333924550,1722631859060,-151.0,0.00016712,2]
[333924552,1722631859069,-2680.88,0.00016712,2]
[333924554,1722631859079,-500.0,0.00016712,2]
[333924556,1722631859089,-897.97,0.00016712,2]
[333924558,1722631859099,-709.67,0.00016712,2]
[333924560,1722631859108,-2057.36,0.00016712,2]
[333924561,1722631859118,-151.0,0.00016712,2]
[333924563,1722631859127,-500.0,0.00016712,2]
[333924565,1722631859137,-151.0,0.00016712,2]
[333924567,1722631859147,-151.0,0.00016712,2]
[333924569,1722631859156,-1285.99,0.00016712,2]
[333924571,1722631859166,-151.0,0.00016712,2]
[333924573,1722631859176,-1200.77,0.00016712,2]
[333924575,1722631859186,-727.61,0.00016712,2]
[333924577,1722631859196,-500.0,0.00016712,2]
[333924579,1722631859206,-1884.18,0.00016712,2]
[333924581,1722631859215,-1000.0,0.00016712,2]
[333924583,1722631859225,-1868.65,0.00016712,2]
[333924585,1722631859234,-994.4,0.00016712,2]
[333924587,1722631859244,-638.05,0.00016712,2]
[333924589,1722631859253,-1133.05,0.00016712,2]
[333924590,1722631859263,-500.0,0.00016712,2]
[333924593,1722631859273,-563.6,0.00016712,2]
[333924594,1722631859283,-2679.91,0.00016712,2]
[333924597,1722631859294,-500.0,0.00016712,2]
[333924599,1722631859303,-542.63,0.00016712,2]
[333924601,1722631859313,-2232.24,0.00016712,2]
[333924603,1722631859323,-500.0,0.00016712,2]
[333924605,1722631859332,-500.0,0.00016712,2]
[333924607,1722631859341,-621.95,0.00016712,2]
[333924608,1722631859351,-2812.95,0.00016712,2]
[333924611,1722631859361,-1302.94,0.00016712,2]
[333924613,1722631859371,-500.0,0.00016712,2]
[333924615,1722631859381,-3303.28,0.00016712,2]
[333924617,1722631859391,-500.0,0.00016712,2]
[333924619,1722631859400,-500.0,0.00016712,2]
[333924621,1722631859410,-964.52,0.00016712,2]
[333924623,1722631859421,-500.0,0.00016712,2]
[333924624,1722631859431,-683.78,0.00016712,2]
[333924627,1722631859440,-727.26,0.00016712,2]
[333924629,1722631859450,-1714.66,0.00016712,2]
[333924630,1722631859459,-500.0,0.00016712,2]
[333924632,1722631859469,-856.71,0.00016712,2]
[333924634,1722631859478,-500.0,0.00016712,2]
[333924636,1722631859488,-500.0,0.00016712,2]
[333924638,1722631859497,-1092.12,0.00016712,2]
[333924640,1722631859506,-500.0,0.00016712,2]
[333924642,1722631859516,-500.0,0.00016712,2]
[333924644,1722631859525,-500.0,0.00016712,2]
[333924646,1722631859535,-882.57,0.00016712,2]
[333924648,1722631859544,-590.09,0.00016712,2]
[333924650,1722631859555,-1026.7,0.00016712,2]
[333924652,1722631859565,-794.24,0.00016712,2]
[333924654,1722631859575,-500.0,0.00016712,2]
[333924656,1722631859585,-500.0,0.00016712,2]
[333924658,1722631859594,-2547.74,0.00016712,2]
[333924660,1722631859603,-1866.48,0.00016712,2]
[333924662,1722631859612,-1835.66,0.00016712,2]
[333924664,1722631859622,-500.0,0.00016712,2]
[333924666,1722631859632,-500.0,0.00016712,2]
[333924668,1722631859641,-500.0,0.00016712,2]
[333924670,1722631859651,-1147.27,0.00016712,2]
[333924672,1722631859661,-500.0,0.00016712,2]
[333924674,1722631859677,-3553.17,0.00016712,2]
[333924676,1722631859687,-500.0,0.00016712,2]
[333924678,1722631859697,-500.0,0.00016712,2]
[333924680,1722631859707,-1627.89,0.00016712,2]
[333924682,1722631859717,-766.19,0.00016712,2]
[333924684,1722631859726,-1067.13,0.00016712,2]
[333924687,1722631859741,-500.0,0.00016712,2]
[333924689,1722631859751,-151.0,0.00016712,2]
[333924691,1722631859761,-151.0,0.00016712,2]
[333924693,1722631859771,-192.948908,0.00016712,2]
[333924695,1722631859780,-968.77,0.00016712,2]
[333924696,1722631859789,-1694.51,0.00016712,2]
[333924698,1722631859798,-720.66,0.00016712,2]
[333924700,1722631859807,-1407.86,0.00016712,2]
[333924702,1722631859816,-500.0,0.00016712,2]
[333924704,1722631859827,-197.034,0.00016712,2]
[333924706,1722631859836,-946.63,0.00016712,2]
[333924708,1722631859845,-500.0,0.00016712,2]
[333924710,1722631859854,-2472.34,0.00016712,2]
[333924713,1722631859867,-500.0,0.00016712,2]
[333924715,1722631859877,-500.0,0.00016712,2]
[333924717,1722631859886,-500.0,0.00016712,2]
[333924719,1722631859896,-1913.13,0.00016712,2]
[333924721,1722631859905,-850.19,0.00016712,2]
[333924723,1722631859914,-1055.87,0.00016712,2]
[333924724,1722631859927,-840.35,0.00016712,2]
[333924726,1722631859937,-2752.63,0.00016712,2]
[333924729,1722631859946,-500.0,0.00016712,2]
[333924731,1722631859955,-1112.82,0.00016712,2]
[333924733,1722631859965,-2572.09,0.00016712,2]
[333924734,1722631859973,-500.0,0.00016712,2]
[333924736,1722631859983,-1644.87,0.00016712,2]
[333924738,1722631859993,-643.0,0.00016712,2]
[333924741,1722631860003,-500.0,0.00016712,2]
[333924743,1722631860013,-2203.02,0.00016712,2]
[333924744,1722631860023,-500.0,0.00016712,2]
[333924746,1722631860033,-500.0,0.00016712,2]
[333924748,1722631860042,-500.0,0.00016712,2]
[333924750,1722631860052,-601.43,0.00016712,2]
[333924752,1722631860062,-1533.2,0.00016712,2]
[333924754,1722631860071,-799.44,0.00016712,2]
[333924756,1722631860081,-2353.11,0.00016712,2]
[333924758,1722631860091,-1287.81,0.00016712,2]
[333924760,1722631860100,-500.0,0.00016712,2]
[333924762,1722631860110,-836.19,0.00016712,2]
[333924764,1722631860120,-734.92,0.00016712,2]
[333924766,1722631860130,-835.63,0.00016712,2]
[333924769,1722631860140,-2199.0,0.00016712,2]
[333924770,1722631860150,-500.0,0.00016712,2]
[333924772,1722631860160,-685.48,0.00016712,2]
[333924774,1722631860173,-1125.21,0.00016712,2]
[333924776,1722631860182,-500.0,0.00016712,2]
[333924778,1722631860191,-500.0,0.00016712,2]
[333924780,1722631860201,-368.06389751,0.00016712,2]
[333924783,1722631860211,-632.45,0.00016712,2]
[333924785,1722631860222,-500.0,0.00016712,2]
[333924787,1722631860233,-875.32,0.00016712,2]
[333924789,1722631860243,-347.81,0.00016712,2]